Workbook

Sheet Лист1
B1: IB | E1: Льгота | I1: Курс рубля | M1: Плоти нолог | O1: Льгота
E2: Сумма с шагом -0.85 за комиссию | M2: IB
B3: Сумма | C3: Дивы до и после налога | E3: 100 | M3: Рублей на счету | N3: Рублей было
B4: 100 | C4: =B4*0.02 -> 2 | E4: =E3*0.9915 -> 99.15 | F4: =E4*0.02 -> 1.983 | I4: 75 | M4: Разница в рублях | N4: Налог
A5: 1 год | B5: =B4*0.08 -> 8 | C5: =C4*0.9 -> 1.8 | E5: =E4*0.08 -> 7.932 | F5: =F4*0.85 -> 1.68555 | M5: Итог в рублях без вычета дивов | N5: Сумма дивов в долларах | O5: Итог в рублях
B6: =B4+B5+C5 -> 109.8 | E6: =E4+E5+F5 -> 108.76755 | M6: Итог в долларах без вычета дивов | N6: Сумма дивов в рублях | O6: Итог в долларах
E7: =E6*0.9915 -> 107.8430258 | F7: =E7*0.02 -> 2.156860517 | I7: =I4*1.07 -> 80.25 | M7: Итог в рублях | N7: Налог на дивы
A8: 2 год | B8: =B6*0.08 -> 8.784 | C8: =B6*0.02 -> 2.196 | E8: =E7*0.08 -> 8.627442066 | F8: =F7*0.85 -> 1.833331439 | M8: Итог в долларах
B9: =B6+B8+C9 -> 120.4506 | C9: =C8*0.85 -> 1.8666 | E9: =E7+E8+F8 -> 118.3037993
E10: =E9*0.9915 -> 117.298217 | F10: =E10*0.02 -> 2.345964341 | I10: =I7*1.07 -> 85.8675
A11: 3 год | B11: =B9*0.08 -> 9.636048 | C11: =B9*0.02 -> 2.409012 | E11: =E10*0.08 -> 9.383857363 | F11: =F10*0.85 -> 1.99406969
B12: =B9+B11+C12 -> 132.1343082 | C12: =C11*0.85 -> 2.0476602 | E12: =E10+E11+F11 -> 128.6761441 | M12: =B12*I13 -> 12140.2657 | N12: 7500
E13: =E12*0.9915 -> 127.5823969 | F13: =E13*0.02 -> 2.551647937 | I13: =I10*1.07 -> 91.878225 | M13: =M12-N12 -> 4640.265699 | N13: =M13*0.13 -> 603.2345409
A14: 4 год | B14: =B12*0.08 -> 10.57074466 | C14: =B12*0.02 -> 2.642686164 | E14: =E13*0.08 -> 10.20659175 | F14: =F13*0.85 -> 2.168900747 | M14: =M12-N13 -> 11537.03116 | N14: =C4+C8+C11 -> 6.605012 | O14: =E12*I13 -> 11822.53572
B15: =B12+B14+C15 -> 144.9513361 | C15: =C14*0.85 -> 2.246283239 | E15: =E13+E14+F14 -> 139.9578894 | M15: =M14/I13 -> 125.5687205 | N15: =N14*I13 -> 606.8567787 | O15: =E12 -> 128.6761441
E16: =E15*0.9915 -> 138.7682473 | F16: =E16*0.02 -> 2.775364946 | I16: =I13*1.07 -> 98.30970075 | M16: =M14-N16 -> 11518.82545 | N16: =N15*0.03 -> 18.20570336
A17: 5 год | B17: =B15*0.08 -> 11.59610689 | C17: =B15*0.02 -> 2.899026722 | E17: =E16*0.08 -> 11.10145978 | F17: =F16*0.85 -> 2.359060204 | M17: =M16/I13 -> 125.3705702
B18: =B15+B17+C18 -> 159.0116157 | C18: =C17*0.85 -> 2.464172714 | E18: =E16+E17+F17 -> 152.2287673
E19: =E18*0.9915 -> 150.9348228 | F19: =E19*0.02 -> 3.018696455 | I19: =I16*1.07 -> 105.1913798
A20: 6 год | B20: =B18*0.08 -> 12.72092926 | C20: =B18*0.02 -> 3.180232314 | E20: =E19*0.08 -> 12.07478582 | F20: =F19*0.85 -> 2.565891987
B21: =B18+B20+C21 -> 174.4357424 | C21: =C20*0.85 -> 2.703197467 | E21: =E19+E20+F20 -> 165.5755006
E22: =E21*0.9915 -> 164.1681088 | F22: =E22*0.02 -> 3.283362176 | I22: =I19*1.07 -> 112.5547764
A23: 7 год | B23: =B21*0.08 -> 13.95485939 | C23: =B21*0.02 -> 3.488714848 | E23: =E22*0.08 -> 13.13344871 | F23: =F22*0.85 -> 2.79085785
B24: =B21+B23+C24 -> 191.3560094 | C24: =C23*0.85 -> 2.965407621 | E24: =E22+E23+F23 -> 180.0924154
E25: =E24*0.9915 -> 178.5616298 | F25: =E25*0.02 -> 3.571232597 | I25: =I22*1.07 -> 120.4336107
A26: 8 год | B26: =B24*0.08 -> 15.30848075 | C26: =B24*0.02 -> 3.827120189 | E26: =E25*0.08 -> 14.28493039 | F26: =F25*0.85 -> 3.035547707
B27: =B24+B26+C27 -> 209.9175423 | C27: =C26*0.85 -> 3.25305216 | E27: =E25+E26+F26 -> 195.8821079
E28: =E27*0.9915 -> 194.21711 | F28: =E28*0.02 -> 3.8843422 | I28: =I25*1.07 -> 128.8639635
A29: 9 год | B29: =B27*0.08 -> 16.79340339 | C29: =B27*0.02 -> 4.198350847 | E29: =E28*0.08 -> 15.5373688 | F29: =F28*0.85 -> 3.30169087
B30: =B27+B29+C30 -> 230.279544 | C30: =C29*0.85 -> 3.56859822 | E30: =E28+E29+F29 -> 213.0561697
E31: =E30*0.9915 -> 211.2451923 | F31: =E31*0.02 -> 4.224903845 | I31: =I28*1.07 -> 137.8844409
A32: 10 год | B32: =B30*0.08 -> 18.42236352 | C32: =B30*0.02 -> 4.605590879 | E32: =E31*0.08 -> 16.89961538 | F32: =F31*0.85 -> 3.591168268
B33: =B30+B32+C33 -> 252.6166597 | C33: =C32*0.85 -> 3.914752247 | E33: =E31+E32+F32 -> 231.7359759 | M33: =B33*I34 -> 37270.14038 | N33: 7500
E34: =E33*0.9915 -> 229.7662201 | F34: =E34*0.02 -> 4.595324402 | I34: =I31*1.07 -> 147.5363518 | M34: =M33-N33 -> 29770.14038 | N34: =M34*0.13 -> 3870.118249
A35: 11 год | B35: =B33*0.08 -> 20.20933278 | C35: =B33*0.02 -> 5.052333194 | E35: =E34*0.08 -> 18.38129761 | F35: =F34*0.85 -> 3.906025742 | M35: =M33-N34 -> 33400.02213 | N35: =C4+C8+C14+C11+C17+C20+C23+C26+C29+C32 -> 31.44673396 | O35: =E33*I34 -> 34189.48046
B36: =B33+B35+C36 -> 277.1204757 | C36: =C35*0.85 -> 4.294483215 | E36: =E34+E35+F35 -> 252.0535435 | M36: =M35/I34 -> 226.3850348 | N36: =N35*I34 -> 4639.536405 | O36: =E33 -> 231.7359759
E37: =E36*0.9915 -> 249.9110883 | F37: =E37*0.02 -> 4.998221767 | I37: =I34*1.07 -> 157.8638964 | M37: =M35-N37 -> 33260.83604 | N37: =N36*0.03 -> 139.1860921
A38: 12 год | B38: =B36*0.08 -> 22.16963806 | C38: =B36*0.02 -> 5.542409514 | E38: =E37*0.08 -> 19.99288707 | F38: =F37*0.85 -> 4.248488502 | M38: =M37/I34 -> 225.4416327
B39: =B36+B38+C39 -> 304.0011619 | C39: =C38*0.85 -> 4.711048087 | E39: =E37+E38+F38 -> 274.1524639
E40: =E39*0.9915 -> 271.822168 | F40: =E40*0.02 -> 5.436443359 | I40: =I37*1.07 -> 168.9143692
A41: 13 год | B41: =B39*0.08 -> 24.32009295 | C41: =B39*0.02 -> 6.080023237 | E41: =E40*0.08 -> 21.74577344 | F41: =F40*0.85 -> 4.620976855
B42: =B39+B41+C42 -> 333.4892746 | C42: =C41*0.85 -> 5.168019752 | E42: =E40+E41+F41 -> 298.1889183
E43: =E42*0.9915 -> 295.6543124 | F43: =E43*0.02 -> 5.913086249 | I43: =I40*1.07 -> 180.738375
A44: 14 год | B44: =B42*0.08 -> 26.67914196 | C44: =B42*0.02 -> 6.669785491 | E44: =E43*0.08 -> 23.652345 | F44: =F43*0.85 -> 5.026123312
B45: =B42+B44+C45 -> 365.8377342 | C45: =C44*0.85 -> 5.669317667 | E45: =E43+E44+F44 -> 324.3327808
E46: =E45*0.9915 -> 321.5759521 | F46: =E46*0.02 -> 6.431519042 | I46: =I43*1.07 -> 193.3900613
A47: 15 год | B47: =B45*0.08 -> 29.26701874 | C47: =B45*0.02 -> 7.316754684 | E47: =E46*0.08 -> 25.72607617 | F47: =F46*0.85 -> 5.466791186
B48: =B45+B47+C48 -> 401.3239944 | C48: =C47*0.85 -> 6.219241481 | E48: =E46+E47+F47 -> 352.7688195
E49: =E48*0.9915 -> 349.7702845 | F49: =E49*0.02 -> 6.99540569 | I49: =I46*1.07 -> 206.9273656
A50: 16 год | B50: =B48*0.08 -> 32.10591955 | C50: =B48*0.02 -> 8.026479888 | E50: =E49*0.08 -> 27.98162276 | F50: =F49*0.85 -> 5.946094837
B51: =B48+B50+C51 -> 440.2524219 | C51: =C50*0.85 -> 6.822507905 | E51: =E49+E50+F50 -> 383.6980021
E52: =E51*0.9915 -> 380.4365691 | F52: =E52*0.02 -> 7.608731382 | I52: =I49*1.07 -> 221.4122811
A53: 17 год | B53: =B51*0.08 -> 35.22019375 | C53: =B51*0.02 -> 8.805048437 | E53: =E52*0.08 -> 30.43492553 | F53: =F52*0.85 -> 6.467421674
B54: =B51+B53+C54 -> 482.9569068 | C54: =C53*0.85 -> 7.484291172 | E54: =E52+E53+F53 -> 417.3389163
E55: =E54*0.9915 -> 413.7915355 | F55: =E55*0.02 -> 8.27583071 | I55: =I52*1.07 -> 236.9111408
A56: 18 год | B56: =B54*0.08 -> 38.63655254 | C56: =B54*0.02 -> 9.659138136 | E56: =E55*0.08 -> 33.10332284 | F56: =F55*0.85 -> 7.034456104
B57: =B54+B56+C57 -> 529.8037267 | C57: =C56*0.85 -> 8.210267415 | E57: =E55+E56+F56 -> 453.9293144
E58: =E57*0.9915 -> 450.0709153 | F58: =E58*0.02 -> 9.001418305 | I58: =I55*1.07 -> 253.4949207
A59: 19 год | B59: =B57*0.08 -> 42.38429814 | C59: =B57*0.02 -> 10.59607453 | E59: =E58*0.08 -> 36.00567322 | F59: =F58*0.85 -> 7.65120556
B60: =B57+B59+C60 -> 581.1946882 | C60: =C59*0.85 -> 9.006663355 | E60: =E58+E59+F59 -> 493.7277941
E61: =E60*0.9915 -> 489.5311078 | F61: =E61*0.02 -> 9.790622156 | I61: =I58*1.07 -> 271.2395651
A62: 20 год | B62: =B60*0.08 -> 46.49557506 | C62: =B60*0.02 -> 11.62389376 | E62: =E61*0.08 -> 39.16248862 | F62: =F61*0.85 -> 8.322028833
B63: =B60+B62+C63 -> 637.570573 | C63: =C62*0.85 -> 9.8803097 | E63: =E61+E62+F62 -> 537.0156253
E64: =E63*0.9915 -> 532.4509924 | F64: =E64*0.02 -> 10.64901985 | I64: =I61*1.07 -> 290.2263347
A65: 21 год | B65: 51.00564584 | C65: 12.75141146 | E65: =E64*0.08 -> 42.5960794 | F65: =F64*0.85 -> 9.051666872
B66: =B63+B65+C66 -> 699.4149186 | C66: =C65*0.85 -> 10.83869974 | E66: =E64+E65+F65 -> 584.0987387
E67: =E66*0.9915 -> 579.1338994 | F67: =E67*0.02 -> 11.58267799 | I67: =I64*1.07 -> 310.5421781
A68: 22 год | B68: 55.95319349 | C68: 13.98829837 | E68: =E67*0.08 -> 46.33071195 | F68: =F67*0.85 -> 9.84527629
B69: =B66+B68+C69 -> 767.2581657 | C69: =C68*0.85 -> 11.89005362 | E69: =E67+E68+F68 -> 635.3098877
E70: =E69*0.9915 -> 629.9097536 | F70: =E70*0.02 -> 12.59819507 | I70: =I67*1.07 -> 332.2801306
A71: 23 год | B71: 61.38065325 | C71: 15.34516331 | E71: =E70*0.08 -> 50.39278029 | F71: =F70*0.85 -> 10.70846581
B72: =B69+B71+C72 -> 841.6822077 | C72: =C71*0.85 -> 13.04338882 | E72: =E70+E71+F71 -> 691.0109997
E73: =E72*0.9915 -> 685.1374062 | F73: =E73*0.02 -> 13.70274812 | I73: =I70*1.07 -> 355.5397397
A74: 24 год | B74: 67.33457662 | C74: 16.83364415 | E74: =E73*0.08 -> 54.8109925 | F74: =F73*0.85 -> 11.64733591
B75: =B72+B74+C75 -> 923.3253819 | C75: =C74*0.85 -> 14.30859753 | E75: =E73+E74+F74 -> 751.5957346
E76: =E75*0.9915 -> 745.2071709 | F76: =E76*0.02 -> 14.90414342 | I76: =I73*1.07 -> 380.4275215
A77: 25 год | B77: 73.86603055 | C77: 18.46650764 | E77: =E76*0.08 -> 59.61657367 | F77: =F76*0.85 -> 12.66852191
B78: =B75+B77+C78 -> 1012.887944 | C78: =C77*0.85 -> 15.69653149 | E78: =E76+E77+F77 -> 817.4922665
E79: =E78*0.9915 -> 810.5435822 | F79: =E79*0.02 -> 16.21087164 | I79: =I76*1.07 -> 407.057448
A80: 26 год | B80: 81.03103552 | C80: 20.25775888 | E80: =E79*0.08 -> 64.84348658 | F80: =F79*0.85 -> 13.7792409
B81: =B78+B80+C81 -> 1111.138075 | C81: =C80*0.85 -> 17.21909505 | E81: =E79+E80+F80 -> 889.1663097
E82: =E81*0.9915 -> 881.6083961 | F82: =E82*0.02 -> 17.63216792 | I82: =I79*1.07 -> 435.5514694
A83: 27 год | B83: 88.89104596 | C83: 22.22276149 | E83: =E82*0.08 -> 70.52867168 | F83: =F82*0.85 -> 14.98734273
B84: =B81+B83+C84 -> 1218.918468 | C84: =C83*0.85 -> 18.88934727 | E84: =E82+E83+F83 -> 967.1244105
E85: =E84*0.9915 -> 958.903853 | F85: =E85*0.02 -> 19.17807706 | I85: =I82*1.07 -> 466.0400722
A86: 28 год | B86: 97.51347742 | C86: 24.37836935 | E86: =E85*0.08 -> 76.71230824 | F86: =F85*0.85 -> 16.3013655
B87: =B84+B86+C87 -> 1337.153559 | C87: =C86*0.85 -> 20.72161395 | E87: =E85+E86+F86 -> 1051.917527
E88: =E87*0.9915 -> 1042.976228 | F88: =E88*0.02 -> 20.85952455 | I88: =I85*1.07 -> 498.6628773
A89: 29 год | B89: =B87*0.08 -> 106.9722847 | C89: =B87*0.02 -> 26.74307118 | E89: =E88*0.08 -> 83.43809822 | F89: =F88*0.85 -> 17.73059587
B90: =B87+B89+C90 -> 1466.857454 | C90: =C89*0.85 -> 22.7316105 | E90: =E88+E89+F89 -> 1144.144922
E91: =E90*0.9915 -> 1134.41969 | F91: =E91*0.02 -> 22.6883938 | I91: =I88*1.07 -> 533.5692787
A92: 30 год | B92: 117.3485963 | C92: 29.33714909 | E92: =E91*0.08 -> 90.7535752 | F92: =F91*0.85 -> 19.28513473
B93: =B90+B92+C93 -> 1609.142627 | C93: =C92*0.85 -> 24.93657672 | E93: =E91+E92+F92 -> 1244.4584 | M93: =B93*I94 -> 918690.306 | N93: 7500
E94: =E93*0.9915 -> 1233.880504 | F94: =E94*0.02 -> 24.67761007 | I94: =I91*1.07 -> 570.9191282 | M94: =M93-N93 -> 911190.306 | N94: =M94*0.13 -> 118454.7398
A95: 31 год | B95: 128.7314102 | C95: 32.18285255 | E95: =E94*0.08 -> 98.71044028 | F95: =F94*0.85 -> 20.97596856 | M95: =M93-N94 -> 800235.5662 | N95: =C4+C8+C11+C14+C17+C20+C23+C26+C29+C32+C35+C38+C41+C44+C47+C50+C53+C56+C59+C62+C65+C68+C71+C74+C77+C80+C83+C86+C89+C92 -> 311.1428098 | O95: =O96*I94 -> 710485.1048
B96: =B93+B95+C96 -> 1765.229462 | C96: =C95*0.85 -> 27.35542467 | E96: =E94+E95+F95 -> 1353.566912 | M96: =M95/I94 -> 1401.661858 | N96: =N95*I94 -> 177637.3817 | O96: =E93 -> 1244.4584
E97: =E96*0.9915 -> 1342.061594 | F97: =E97*0.02 -> 26.84123187 | I97: =I94*1.07 -> 610.8834672 | M97: =M95-N97 -> 794906.4448 | N97: =N96*0.03 -> 5329.121451
A98: 32 год | B98: 141.218357 | C98: 35.30458925 | E98: =E97*0.08 -> 107.3649275 | F98: =F97*0.85 -> 22.81504709 | M98: =M97/I94 -> 1392.327574
B99: =B96+B98+C99 -> 1936.45672 | C99: =C98*0.85 -> 30.00890086 | E99: =E97+E98+F98 -> 1472.241568

Sheet Лист2

Sheet Лист3
